fUST/lending_fUST_20240314
["ID","MTS","AMOUNT","RATE_DAILY","PERIOD"]
[318682718,1710350572015,-500.0,0.00018029,2]
[318682719,1710350572036,-500.0,0.00018029,2]
[318682720,1710350572058,-500.0,0.00018029,2]
[318682721,1710350572080,-500.0,0.00018029,2]
[318682722,1710350572104,-7269.83,0.00018029,2]
[318682723,1710350572127,-523.18,0.00018029,2]
[318682724,1710350572150,-151.0,0.00018029,2]
[318682725,1710350572172,-1546.31,0.00018029,2]
[318682726,1710350572194,-171.90457625,0.00018031,2]
[318682727,1710350572216,-279.880792,0.00018058,2]
[318682728,1710350572239,-165.507013,0.00018058,2]
[318682729,1710350572261,-2000.0,0.00018064,2]
[318682730,1710350572283,-500.0,0.00018208,2]
[318682731,1710350572305,-500.0,0.00018208,2]
[318682732,1710350572328,-500.0,0.00018208,2]
[318682733,1710350572355,-500.0,0.00018208,2]
[318682734,1710350572378,-1006.59,0.00018208,2]
[318682735,1710350572400,-1006.59,0.00018208,2]
[318682736,1710350572423,-500.0,0.00018208,2]
[318682737,1710350572445,-500.0,0.00018208,2]
[318682738,1710350572470,-500.0,0.00018208,2]
[318682739,1710350572493,-500.0,0.00018208,2]
[318682740,1710350572515,-151.0,0.00018208,2]
[318682741,1710350572537,-332.559793,0.00018209,2]
[318682742,1710350572559,-332.559793,0.00018209,2]
[318682743,1710350572580,-151.0,0.00018209,2]
[318682744,1710350572602,-151.0,0.00018209,2]
[318682745,1710350572624,-500.0,0.0001821,2]
[318682746,1710350572646,-500.0,0.0001821,2]
[318682747,1710350572668,-500.0,0.0001821,2]
[318682748,1710350572690,-500.0,0.0001821,2]
[318682749,1710350572715,-1242.94,0.0001821,2]
[318682750,1710350572738,-500.0,0.0001821,2]
[318682751,1710350572762,-500.0,0.0001821,2]
[318682752,1710350572785,-1006.59,0.0001821,2]
[318682753,1710350572808,-500.0,0.0001821,2]
[318682754,1710350572831,-500.0,0.0001821,2]
[318682755,1710350572857,-500.0,0.0001821,2]
[318682756,1710350572879,-500.0,0.0001821,2]
[318682757,1710350572902,-500.0,0.0001821,2]
[318682758,1710350572924,-379.3701981,0.0001821,2]
[318682759,1710350572947,-259.91547688,0.0001821,2]
[318682760,1710350572973,-7269.83,0.0001821,2]
[318682761,1710350572995,-500.0,0.0001821,2]
[318682762,1710350573017,-523.18,0.0001821,2]
[318682763,1710350573041,-500.0,0.00018211,2]
[318682764,1710350573064,-500.0,0.00018211,2]
[318682765,1710350573085,-500.0,0.00018211,2]
[318682766,1710350573114,-500.0,0.00018211,2]
[318682767,1710350573143,-500.0,0.00018211,2]
[318682768,1710350573166,-500.0,0.00018211,2]
[318682769,1710350573188,-504.34008846,0.00018211,2]
[318682770,1710350573212,-332.559793,0.00018211,2]
[318682771,1710350573234,-332.559793,0.00018211,2]
[318682772,1710350573256,-500.0,0.00018211,2]
[318682773,1710350573278,-151.0,0.00018211,2]
[318682774,1710350573301,-500.0,0.00018211,2]
[318682775,1710350573324,-500.0,0.00018211,2]
[318682776,1710350573346,-500.0,0.00018211,2]
[318682777,1710350573368,-151.0,0.00018211,2]
[318682778,1710350573390,-1242.94,0.00018211,2]
[318682779,1710350573413,-500.0,0.00018211,2]
[318682780,1710350573437,-636.80102667,0.00018212,2]
[318682781,1710350573461,-500.0,0.00018212,2]
[318682782,1710350573484,-500.0,0.00018212,2]
[318682783,1710350573506,-500.0,0.00018212,2]
[318682784,1710350573529,-500.0,0.00018212,2]
[318682785,1710350573550,-500.0,0.00018212,2]
[318682786,1710350573572,-500.0,0.00018212,2]
[318682787,1710350573595,-332.559793,0.00018212,2]
[318682788,1710350573616,-332.559793,0.00018212,2]
[318682789,1710350573639,-151.0,0.00018212,2]
[318682790,1710350573662,-2739.24051485,0.00018214,2]
[318682791,1710350573684,-151.0,0.00018214,2]
[318682792,1710350573709,-2000.0,0.00018243,2]
[318682793,1710350573731,-279.880792,0.00018284,2]
[318682794,1710350573753,-153.0,0.000183,2]
[318682795,1710350573775,-153.0,0.000183,2]
[318682796,1710350573797,-153.0,0.000183,2]
[318682797,1710350573819,-153.0,0.000183,2]
[318682798,1710350573842,-153.0,0.000183,2]
[318682799,1710350573865,-153.0,0.000183,2]
[318682800,1710350573890,-153.0,0.000184,2]
[318682801,1710350573914,-153.0,0.000184,2]
[318682802,1710350573936,-153.0,0.000184,2]
[318682803,1710350573961,-153.0,0.000184,2]
[318682804,1710350573983,-153.0,0.000184,2]
[318682805,1710350574005,-153.0,0.000184,2]
[318682806,1710350574027,-2000.0,0.00018422,2]
[318682807,1710350574049,-304.88869119,0.00018439,2]
[318682808,1710350574174,-201.085777,0.000185,2]
[318682809,1710350574196,-153.0,0.000185,2]
[318682810,1710350574220,-153.0,0.000185,2]
[318682811,1710350574244,-636.80102667,0.00018501,2]
[318682812,1710350574266,-279.880792,0.00018509,2]
[318682813,1710350574288,-2000.0,0.000186,2]
[318682814,1710350574310,-334.16434256,0.00018601,2]
[318682815,1710350574333,-500.0,0.00018601,2]
[318682816,1710350574357,-1006.59,0.00018601,2]
[318682817,1710350574379,-500.0,0.00018601,2]
[318682818,1710350574402,-500.0,0.00018601,2]
[318682819,1710350574426,-332.559793,0.00018602,2]
[318682820,1710350574448,-332.559793,0.00018602,2]
[318682821,1710350574473,-151.0,0.00018602,2]
[318682822,1710350574495,-151.0,0.00018602,2]
[318682823,1710350574518,-559.14,0.00018602,2]
[318682824,1710350574540,-500.0,0.00018602,2]
[318682825,1710350574563,-500.0,0.00018602,2]
[318682826,1710350574585,-7269.83,0.00018602,2]
[318682827,1710350574606,-523.18,0.00018602,2]
[318682828,1710350574627,-153.0,0.00018603,2]
[318682829,1710350574647,-153.0,0.00018603,2]
[318682830,1710350574669,-153.0,0.00018603,2]
[318682831,1710350574692,-153.0,0.00018603,2]
[318682832,1710350574718,-153.0,0.00018603,2]
[318682833,1710350574740,-153.0,0.00018603,2]
[318682834,1710350574762,-153.0,0.00018603,2]
[318682835,1710350574785,-153.0,0.00018603,2]
[318682836,1710350574806,-16397.64626092,0.0001868,9]
[318682837,1710350574829,-687.12085551,0.0001868,2]
[318682838,1710350574851,-500.0,0.0001873,2]
[318682839,1710350574877,-354.99853087,0.0001873,2]
[318682840,1710350574899,-500.0,0.0001873,2]
[318682841,1710350574922,-500.0,0.0001873,2]
[318682842,1710350574945,-1242.94,0.0001873,2]
[318682843,1710350574968,-500.0,0.0001873,2]
[318682844,1710350574990,-500.0,0.00018731,2]
[318682845,1710350575012,-579.26410618,0.00018731,2]
[318682846,1710350575034,-500.0,0.00018731,2]
[318682847,1710350575058,-500.0,0.00018731,2]
[318682848,1710350575080,-500.0,0.00018731,2]
[318682849,1710350575104,-448.43668036,0.00018731,2]
[318682850,1710350575126,-332.559793,0.00018731,2]
[318682851,1710350575148,-332.559793,0.00018731,2]
[318682852,1710350575170,-279.880792,0.00018735,2]
[318682853,1710350575192,-151.0,0.00018743,2]
[318682854,1710350575215,-2707.795506,0.00018779,2]
[318682855,1710350575237,-636.80102667,0.00018789,2]
[318682856,1710350575259,-958.02317639,0.000189,2]
[318682857,1710350575282,-279.880792,0.00018961,2]
[318682858,1710350575303,-332.559793,0.00019,2]
[318682859,1710350575325,-332.559793,0.00019,2]
[318682860,1710350575347,-660.0,0.00019,2]
[318682861,1710350575370,-6414.0,0.00019,2]
[318682862,1710350575393,-502.88242045,0.00019077,2]
[318682863,1710350575415,-500.0,0.00019077,2]
[318682864,1710350575436,-217.4,0.00019077,2]
[318682865,1710350575458,-7269.83,0.00019077,2]
[318682866,1710350575481,-7269.83,0.00019077,2]
[318682867,1710350575504,-7269.83,0.00019077,2]
[318682868,1710350575526,-6481.76199883,0.00019077,2]
[318682870,1710350750474,15000.0,0.00015,2]
[318682898,1710351032925,-155.11323266,0.00016727,2]
[318682899,1710351032934,-155.11323266,0.00016728,2]
[318682900,1710351032943,-929.00320615,0.00016729,2]
[318682901,1710351032952,-230.600981,0.00016734,2]
[318682902,1710351032961,-202.50973525,0.000168,2]
[318682903,1710351032970,-196.3596661,0.00016992,2]
[318682904,1710351032979,-24900.0,0.00017946,2]
[318682905,1710351032988,-500.0,0.00017998,2]
[318682906,1710351032999,-500.0,0.00017998,2]
[318682907,1710351033008,-500.0,0.00017998,2]
[318682908,1710351033018,-500.0,0.00017998,2]
[318682909,1710351033027,-500.0,0.00017998,2]
[318682910,1710351033037,-500.0,0.00017998,2]
[318682912,1710351033046,-500.0,0.00017998,2]
[318682914,1710351033055,-619.71991047,0.00017998,2]
[318682915,1710351033064,-838.83,0.00017998,2]
[318682917,1710351033073,-838.83,0.00017998,2]
[318682919,1710351033083,-828.63,0.00017998,2]
[318682921,1710351033092,-828.63,0.00017998,2]
[318682923,1710351033101,-500.0,0.00017998,2]
[318682925,1710351033110,-500.0,0.00017998,2]
[318682927,1710351033120,-500.0,0.00017998,2]
[318682929,1710351033129,-4576.48,0.00017998,2]
[318682931,1710351033138,-4576.48,0.00017998,2]
[318682933,1710351033147,-1353.02,0.00017998,2]
[318682935,1710351033156,-1353.02,0.00017998,2]
[318682937,1710351033165,-16970.53739958,0.00018021,2]
[318682939,1710351033174,-4576.48,0.00018022,2]
[318682941,1710351033183,-1353.02,0.00018022,2]
[318682943,1710351033192,-500.0,0.00018023,2]
[318682945,1710351033201,-500.0,0.00018023,2]
[318682946,1710351033210,-439.09556182,0.00018023,2]
[318683258,1710351043293,-60.90443818,0.00018023,2]
[318683260,1710351043303,-500.0,0.00018023,2]
[318683262,1710351043313,-500.0,0.00018023,2]
[318683265,1710351043322,-500.0,0.00018023,2]
[318683268,1710351043331,-500.0,0.00018023,2]
[318683271,1710351043340,-500.0,0.00018023,2]
[318683273,1710351043350,-500.0,0.00018023,2]
[318683275,1710351043360,-500.0,0.00018023,2]
[318683277,1710351043369,-500.0,0.00018024,2]
[318683279,1710351043380,-500.0,0.00018024,2]
[318683282,1710351043391,-500.0,0.00018024,2]
[318683284,1710351043401,-838.83,0.00018024,2]
[318683286,1710351043410,-828.63,0.00018024,2]
[318683288,1710351043419,-500.0,0.00018024,2]
[318683290,1710351043428,-4576.48,0.00018028,2]
[318683292,1710351043438,-1353.02,0.00018028,2]
[318683294,1710351043447,-256.63551492,0.00018029,2]
[318683295,1710351043457,-500.0,0.00018029,2]
[318683297,1710351043467,-500.0,0.00018029,2]
[318683300,1710351043476,-500.0,0.00018029,2]
[318683301,1710351043485,-369.650485,0.00018029,2]
[318683303,1710351043495,-500.0,0.00018207,2]
[318683305,1710351043505,-500.0,0.00018207,2]
[318683308,1710351043514,-500.0,0.00018207,2]
[318683309,1710351043523,-838.83,0.00018207,2]
[318683311,1710351043533,-828.63,0.00018207,2]
[318683314,1710351043545,-500.0,0.00018207,2]
[318683316,1710351043554,-500.0,0.0001821,2]
[318683318,1710351043564,-500.0,0.0001821,2]
[318683320,1710351043573,-4576.48,0.0001821,2]
[318683322,1710351043583,-1353.02,0.0001821,2]
[318683324,1710351043592,-500.0,0.00018213,2]
[318683326,1710351043601,-500.0,0.00018213,2]
[318683327,1710351043610,-500.0,0.00018213,2]
[318683329,1710351043619,-838.83,0.00018242,2]
[318683331,1710351043630,-828.63,0.00018242,2]
[318683333,1710351043639,-500.0,0.00018242,2]
[318683335,1710351043648,-500.0,0.00018602,2]
[318683337,1710351043657,-500.0,0.00018602,2]
[318683339,1710351043666,-685.41204182,0.0001868,2]
[318683341,1710351043675,-4576.48,0.0001873,2]
[318683343,1710351043685,-1353.02,0.0001873,2]
[318683345,1710351043694,-159.20025669,0.00018749,2]
[318683346,1710351043705,-500.0,0.00018849,2]
[318683347,1710351043715,-440.33982358,0.00018849,2]
[318683348,1710351043724,-532.91714164,0.00018849,2]
[318683350,1710351043734,-638.68211759,0.000189,2]
[318683352,1710351043746,-159.20025666,0.00018935,2]
[318683354,1710351043757,-838.83,0.00018999,2]
[318683356,1710351043767,-828.63,0.00018999,2]
[318683358,1710351043777,-500.0,0.00018999,2]
[318683360,1710351043787,-923.36098129,0.00019,2]
[318683362,1710351043801,-2283.63901871,0.00019,2]
[318683364,1710351043811,-3525.26117317,0.00019076,2]
[318683365,1710351043823,-1051.21882683,0.00019076,2]
[318683366,1710351043833,-1353.02,0.00019076,2]
[318683367,1710351043843,-523.18,0.00019077,2]
[318683369,1710351043853,-523.18,0.00019077,2]
[318683370,1710351043863,-523.18,0.00019077,2]
[318683371,1710351043873,-523.18,0.00019077,2]
[318683372,1710351043883,-228.92451191,0.00019077,2]
[318683593,1710351047113,-294.25548809,0.00019077,2]
[318683594,1710351047123,-523.18,0.00019077,2]
[318683595,1710351047133,-155.12099438,0.00019077,2]
[318683596,1710351047142,-500.0,0.00019077,2]
[318683597,1710351047151,-500.0,0.00019077,2]
[318683598,1710351047161,-500.0,0.00019077,2]
[318683599,1710351047170,-500.0,0.00019077,2]
[318683600,1710351047180,-500.0,0.00019077,2]
[318683601,1710351047189,-360.3,0.00019077,2]
[318683602,1710351047198,-500.0,0.00019077,2]
[318683603,1710351047207,-500.0,0.00019077,2]
[318683604,1710351047297,-500.0,0.00019077,2]
[318683605,1710351047307,-500.0,0.00019077,2]
[318683606,1710351047317,-500.0,0.00019077,2]
[318683607,1710351047326,-500.0,0.00019077,2]
[318683608,1710351047336,-838.83,0.00019077,2]
[318683609,1710351047346,-838.83,0.00019077,2]
[318683610,1710351047355,-838.83,0.00019077,2]
[318683611,1710351047364,-838.83,0.00019077,2]
[318683612,1710351047373,-838.83,0.00019077,2]
[318683613,1710351047383,-4.68193601,0.00019077,2]
[318683614,1710351047395,-823.94806399,0.00019077,2]
[318683616,1710351047404,-828.63,0.00019077,2]
[318683618,1710351047413,-828.63,0.00019077,2]
[318683620,1710351047422,-828.63,0.00019077,2]
[318683622,1710351047431,-828.63,0.00019077,2]
[318683624,1710351047440,-4576.48,0.00019077,2]
[318683626,1710351047449,-3877.33958175,0.00019077,2]
[318683628,1710351047460,-699.14041825,0.00019077,2]
[318683630,1710351047469,-896.95875603,0.00019077,2]
[318683697,1710352171227,1000.0,0.00025,120]
[318683739,1710352232611,-155.07753877,0.00015577,2]
[318683741,1710352232621,-9267.37006368,0.00015577,2]
[318683743,1710352232635,-38414.41857426,0.00015577,2]
[318683745,1710352232650,-24900.0,0.00015578,2]
[318683747,1710352232662,-280.68009659,0.00016481,2]
[318683749,1710352232672,-245.91300671,0.00016481,2]
[318683751,1710352232682,-322.1031252,0.00016482,2]
[318683753,1710352232692,-155.07753877,0.00016482,2]
[318683755,1710352232702,-166.69118031,0.00016483,2]
[318683757,1710352232712,-2116.20898632,0.00016574,2]
[318683759,1710352232723,-704.36144243,0.00016575,2]
[318683762,1710352232734,-806.41845803,0.00016575,2]
[318683764,1710352232744,-690.73115949,0.00016575,2]
[318683765,1710352232754,-186.78192849,0.00016575,2]
[318683767,1710352232764,-851.64917144,0.00016576,2]
[318683769,1710352232774,-404.72362458,0.00016576,2]
[318683771,1710352232784,-1952.51859257,0.00016577,2]
[318683773,1710352232794,-2843.6167853,0.00016578,2]
[318683776,1710352232806,-6214.57284901,0.00016578,2]
[318683899,1710352237933,-6207.43310737,0.00016578,2]
[318683900,1710352237943,-300.0,0.00016686,2]
[318683902,1710352237952,-287.10466235,0.00016737,2]
[318683903,1710352237962,-200.0,0.00017373,2]
[318683905,1710352237971,-200.0,0.00017737,2]
[318683907,1710352237980,-2000.0,0.00017771,2]
[318683910,1710352237990,-931.25816447,0.00017832,2]
[318683912,1710352238000,-273.507345,0.00017946,2]
[318683914,1710352238010,-502.25134309,0.00017997,2]
[318683916,1710352238019,-500.0,0.00018025,2]
[318683918,1710352238028,-170.83,0.00018027,2]
[318683920,1710352238037,-2000.0,0.00018167,2]
[318683922,1710352238047,-32573.00844449,0.00018204,2]
[318683923,1710352238056,-500.0,0.00018205,2]
[318683926,1710352238066,-500.0,0.00018205,2]
[318683927,1710352238075,-500.0,0.00018205,2]
[318683929,1710352238085,-500.0,0.00018205,2]
[318683931,1710352238094,-500.0,0.00018205,2]
[318683934,1710352238103,-500.0,0.00018205,2]
[318683935,1710352238113,-500.0,0.00018205,2]
[318683938,1710352238123,-500.0,0.00018205,2]
[318683939,1710352238133,-692.59,0.00018205,2]
[318683941,1710352238144,-692.59,0.00018205,2]
[318683943,1710352238152,-500.0,0.00018205,2]
[318683945,1710352238162,-500.0,0.00018205,2]
[318683948,1710352238171,-493.05450047,0.00018205,2]
[318683950,1710352238183,-6.94549953,0.00018205,2]
[318683952,1710352238192,-239.9652503,0.00018206,2]
[318683954,1710352238201,-500.0,0.00018206,2]
[318683956,1710352238210,-252.18648009,0.00018206,2]
[318684155,1710352239943,-247.81351991,0.00018206,2]
[318684157,1710352239953,-500.0,0.00018206,2]
[318684159,1710352239962,-89.21319576,0.00018206,2]
[318684161,1710352239973,-410.78680424,0.00018206,2]
[318684163,1710352239982,-58.40743681,0.00018206,2]
[318684165,1710352239993,-441.59256319,0.00018206,2]
[318684167,1710352240002,-500.0,0.00018206,2]
[318684169,1710352240011,-500.0,0.00018206,2]
[318684171,1710352240020,-500.0,0.00018206,2]
[318684173,1710352240029,-384.53850814,0.00018206,2]
[318684175,1710352240040,-115.46149186,0.00018206,2]
[318684177,1710352240048,-500.0,0.00018206,2]
[318684179,1710352240058,-500.0,0.00018206,2]
[318684181,1710352240067,-500.0,0.00018206,2]
[318684183,1710352240076,-500.0,0.00018206,2]
[318684185,1710352240085,-480.57713669,0.0001824,2]
[318684360,1710352242483,-19.42286331,0.0001824,2]
[318684362,1710352242492,-500.0,0.0001824,2]
[318684364,1710352242501,-500.0,0.0001824,2]
[318684366,1710352242510,-500.0,0.0001824,2]
[318684368,1710352242519,-510.99,0.0001824,2]
[318684370,1710352242529,-510.99,0.0001824,2]
[318684371,1710352242538,-294.91980413,0.0001824,2]
[318684372,1710352242546,-450.0,0.00018355,2]
[318684373,1710352242556,-200.0,0.00018373,2]
[318684375,1710352242564,-2000.0,0.00018562,2]
[318684377,1710352242573,-200.0,0.00018737,2]
[318684378,1710352242582,-500.0,0.0001882,2]
[318684379,1710352242591,-500.0,0.0001882,2]
[318684380,1710352242600,-617.90671689,0.0001882,2]
[318684381,1710352242609,-500.0,0.0001882,2]
[318684382,1710352242619,-641.23834948,0.0001882,2]
[318684383,1710352242628,-500.0,0.0001882,2]
[318684384,1710352242638,-529.94934446,0.0001882,2]
[318684385,1710352242647,-500.0,0.0001882,2]
[318684386,1710352242657,-500.0,0.0001882,2]
[318684387,1710352242665,-500.80688077,0.0001882,2]
[318684388,1710352242675,-500.0,0.0001882,2]
[318684389,1710352242684,-328.27925557,0.0001882,2]
[318684390,1710352242694,-500.0,0.0001882,2]
[318684391,1710352242703,-500.0,0.0001882,2]
[318684392,1710352242712,-500.0,0.0001882,2]
[318684393,1710352242721,-500.0,0.0001882,2]
[318684394,1710352242730,-500.0,0.0001882,2]
[318684395,1710352242739,-500.0,0.0001882,2]
[318684396,1710352242748,-500.0,0.0001882,2]
[318684397,1710352242758,-500.0,0.0001882,2]
[318684398,1710352242767,-500.0,0.0001882,2]
[318684399,1710352242776,-500.0,0.0001882,2]
[318684400,1710352242785,-500.0,0.0001882,2]
[318684401,1710352242795,-500.0,0.0001882,2]
[318684402,1710352242804,-500.0,0.0001882,2]
[318684403,1710352242813,-500.0,0.0001882,2]
[318684405,1710352242823,-1021.08,0.0001882,2]
[318684406,1710352242833,-1021.08,0.0001882,2]
[318684407,1710352242842,-500.0,0.0001882,2]
[318684408,1710352242851,-500.0,0.0001882,2]
[318684409,1710352242860,-500.0,0.0001882,2]
[318684410,1710352242869,-500.0,0.0001882,2]
[318684411,1710352242878,-500.0,0.0001882,2]
[318684413,1710352242887,-579.05248449,0.0001882,2]
[318684415,1710352242897,-1113.54432116,0.0001882,2]
[318684417,1710352242908,-1709.37567884,0.0001882,2]
[318684419,1710352242919,-160.64236988,0.0001882,2]
[318684432,1710352243208,-494.66853044,0.00018025,2]
[318684433,1710352243219,-116.54146956,0.00018025,2]
[318684434,1710352243228,-611.21,0.0001824,2]
[318684435,1710352243237,-2662.27763012,0.0001882,2]
[318684436,1710352243246,-500.0,0.0001882,2]
[318684437,1710352243254,-364.72985756,0.0001882,2]
[318684438,1710352243264,-500.0,0.0001882,2]
[318684439,1710352243272,-500.0,0.0001882,2]
[318684440,1710352243281,-500.0,0.0001882,2]
[318684441,1710352243290,-500.0,0.0001882,2]
[318684442,1710352243299,-1035.71,0.0001882,2]
[318684443,1710352243308,-1035.71,0.0001882,2]
[318684444,1710352243317,-626.90013028,0.00018821,2]
[318684461,1710352246175,-4373.09986972,0.00018821,2]
[318684463,1710352246185,-798.41285726,0.00018976,2]
[318684465,1710352246195,-1603.0,0.00019,2]
[318684466,1710352246204,-798.41285723,0.00019061,2]
[318684467,1710352246213,-500.0,0.00019076,2]
[318684468,1710352246222,-500.0,0.00019076,2]
[318684469,1710352246231,-500.0,0.00019076,2]
[318684470,1710352246241,-500.0,0.00019076,2]
[318684471,1710352246250,-500.0,0.00019076,2]
[318684472,1710352246260,-500.0,0.00019076,2]
[318684473,1710352246269,-643.84995796,0.00019076,2]
[318684474,1710352246278,-500.0,0.00019076,2]
[318684475,1710352246287,-500.0,0.00019076,2]
[318684476,1710352246296,-500.0,0.00019076,2]
[318684477,1710352246305,-500.0,0.00019076,2]
[318684478,1710352246314,-510.99,0.00019076,2]
[318684479,1710352246323,-504.65870856,0.00019076,2]
[318684480,1710352246332,-153.18194163,0.00019076,2]
[318684481,1710352246343,-500.0,0.00019076,2]
[318684482,1710352246352,-1021.08,0.00019076,2]
[318684483,1710352246365,-500.0,0.00019076,2]
[318684484,1710352246374,-500.0,0.00019076,2]
[318684485,1710352246383,-500.0,0.00019076,2]
[318684486,1710352246393,-500.0,0.00019076,2]
[318684487,1710352246403,-2822.92,0.00019076,2]
[318684488,1710352246413,-692.59,0.00019076,2]
[318684489,1710352246422,-500.0,0.00019076,2]
[318684490,1710352246432,-500.0,0.00019076,2]
[318684491,1710352246442,-518.46427035,0.00019076,2]
[318684492,1710352246453,-500.0,0.00019076,2]
[318684493,1710352246462,-1035.71,0.00019076,2]
[318684494,1710352246471,-611.21,0.00019076,2]
[318684495,1710352246480,-155.11323266,0.00019077,2]
[318684496,1710352246489,-500.0,0.00019077,2]
[318684497,1710352246498,-500.0,0.00019077,2]
[318684498,1710352246508,-500.0,0.00019077,2]
[318684499,1710352246517,-500.0,0.00019077,2]
[318684500,1710352246526,-500.0,0.00019077,2]
[318684501,1710352246535,-524.4,0.00019077,2]
[318684502,1710352246543,-1377.62899269,0.00019077,2]
[318684503,1710352246552,-500.0,0.00019077,2]
[318684504,1710352246561,-500.0,0.00019077,2]
[318684505,1710352246570,-500.0,0.00019077,2]
[318684506,1710352246579,-500.0,0.00019077,2]
[318684507,1710352246588,-500.0,0.00019077,2]
[318684508,1710352246596,-798.41285723,0.00019146,2]
[318684509,1710352246605,-1000.0,0.0001916,2]
[318684510,1710352246614,-500.0,0.00019177,2]
[318684511,1710352246623,-500.0,0.00019177,2]
[318684512,1710352246632,-500.0,0.00019178,2]
[318684513,1710352246641,-156.32281006,0.00019178,2]
[318684514,1710352246688,-343.67718994,0.00019178,2]
[318684515,1710352246697,-500.0,0.00019178,2]
[318684516,1710352246705,-500.0,0.00019178,2]
[318684517,1710352246714,-500.0,0.00019178,2]
[318684518,1710352246723,-303.01949893,0.00019178,2]
[318684519,1710352246732,-500.0,0.00019178,2]
[318684520,1710352246740,-500.0,0.00019178,2]
[318684521,1710352246749,-404.51199345,0.00019178,2]
[318684522,1710352246758,-500.0,0.00019178,2]
[318684523,1710352246767,-500.0,0.00019178,2]
[318684524,1710352246775,-202.41154868,0.00019178,2]
[318684525,1710352246784,-304.497068,0.00019178,2]
[318684526,1710352246793,-168.844423,0.00019178,2]
[318684527,1710352246802,-166.666666,0.00019178,2]
[318684528,1710352246811,-249.76272318,0.00019178,2]
[318684529,1710352246819,-1000.0,0.00019215,2]
[318684530,1710352246828,-798.41285723,0.0001923,2]
[318684531,1710352246837,-500.0,0.00019232,2]
[318684532,1710352246846,-500.0,0.00019287,2]
[318684533,1710352246859,-1000.0,0.00019298,2]
[318684534,1710352246882,-158.89383842,0.00019305,2]
[318684535,1710352246907,-500.0,0.00019305,2]
[318684536,1710352246938,-624.94491615,0.00019305,2]
[318684537,1710352246969,-500.0,0.00019305,2]
[318684538,1710352246999,-500.0,0.00019305,2]
[318684539,1710352247017,-247.52324659,0.00019305,2]
[318684575,1710353355972,12063.91881479,0.000155,2]
[318684623,1710353432091,-155.11168041,0.00015596,2]
[318684625,1710353432100,-290.68098017,0.00015596,2]
[318684627,1710353432110,-528.93081481,0.00015597,2]
[318684629,1710353432119,-322.1031252,0.00015597,2]
[318684631,1710353432128,-131.90710587,0.00015597,2]
[318684633,1710353432139,-3497.29169722,0.00015597,2]
[318684636,1710353432152,-11636.42393859,0.00015597,2]
[318684638,1710353432160,-2741.31923261,0.00015598,2]
[318684640,1710353432170,-155.108576,0.00015598,2]
[318684642,1710353432179,-539.4768935,0.00015598,2]
[318684644,1710353432188,-704.36144243,0.00015599,2]
[318684646,1710353432199,-300.0,0.00015601,2]
[318684648,1710353432208,-769.78522252,0.00015614,2]
[318684650,1710353432218,-2040.74767133,0.00015615,2]
[318684652,1710353432231,-2356.85907087,0.00015615,2]
[318684654,1710353432241,-411.517113,0.00015618,2]
[318684656,1710353432250,-166.69118031,0.0001599,2]
[318684658,1710353432259,-325.63435783,0.00016095,2]
[318684660,1710353432269,-534.81,0.00016691,2]
[318684662,1710353432278,-500.0,0.00016691,2]